[Event "Late Titled Tuesday Blitz February 8 2022"]
[White "Garcia Martin, Marta"]
[Black "Vifleemskaia, Svetlana"]
[WhiteFideId "32084030"]
[BlackFideId "4129490"]
[WhiteElo "2102"]
[BlackElo "1901"]
[Result "1-0"]
[Round "02"]
[TimeControl "180+1"]
[Date "2022.02.09"]
[WhiteClock "0:00:52"]
[BlackClock "0:00:04"]

1. d4 {[%clk 0:03:00]}  Nf6 {[%clk 0:02:59]} 2. Nf3 {[%clk 0:03:01]}  d5 {[%clk 0:02:58]} 3. e3 {[%clk 0:03:01]}  c5 {[%clk 0:02:57]} 4. Be2 {[%clk 0:02:59]}  Nc6 {[%clk 0:02:57]} 5. O-O {[%clk 0:02:59]}  e6 {[%clk 0:02:57]} 6. b3 {[%clk 0:02:59]}  Be7 {[%clk 0:02:55]} 7. Bb2 {[%clk 0:02:59]}  O-O {[%clk 0:02:55]} 8. Nbd2 {[%clk 0:03:00]}  Ne4 {[%clk 0:02:55]} 9. c4 {[%clk 0:02:57]}  Nxd2 {[%clk 0:02:51]} 10. Qxd2 {[%clk 0:02:56]}  cxd4 {[%clk 0:02:50]} 11. exd4 {[%clk 0:02:57]}  Bf6 {[%clk 0:02:47]} 12. Rad1 {[%clk 0:02:52]}  dxc4 {[%clk 0:02:34]} 13. bxc4 {[%clk 0:02:51]}  Qa5 {[%clk 0:02:34]} 14. Bc3 {[%clk 0:02:48]}  Qa4 {[%clk 0:02:34]} 15. d5 {[%clk 0:02:38]}  Bxc3 {[%clk 0:02:32]} 16. Qxc3 {[%clk 0:02:39]}  Na5 {[%clk 0:02:07]} 17. Rd4 {[%clk 0:02:28]}  b6 {[%clk 0:01:37]} 18. Bd3 {[%clk 0:01:55]}  g6 {[%clk 0:00:54]} 19. Rh4 {[%clk 0:01:41]}  f6 {[%clk 0:00:41]} 20. Rh6 {[%clk 0:01:30]}  Kg7 {[%clk 0:00:38]} 21. Qd2 {[%clk 0:01:22]}  exd5 {[%clk 0:00:35]} 22. Rh4 {[%clk 0:01:18]}  h5 {[%clk 0:00:27]} 23. cxd5 {[%clk 0:01:18]}  Qa3 {[%clk 0:00:20]} 24. Re1 {[%clk 0:01:14]}  Qd6 {[%clk 0:00:19]} 25. Rhe4 {[%clk 0:01:07]}  Rf7 {[%clk 0:00:16]} 26. Re8 {[%clk 0:01:04]}  Qxd5 {[%clk 0:00:13]} 27. Rh8 {[%clk 0:00:55]}  g5 {[%clk 0:00:04]} 28. Ree8 {[%clk 0:00:52]} 1-0


[Site "https://www.chess.com"]

[Event "Late Titled Tuesday Blitz February 8 2022"]
[White "Garriga Cazorla, Pere"]
[Black "Rangel, Daniel"]
[WhiteFideId "32011601"]
[BlackFideId "2124475"]
[WhiteElo "2458"]
[BlackElo "2187"]
[Result "1-0"]
[Round "02"]
[TimeControl "180+1"]
[Date "2022.02.09"]
[WhiteClock "0:01:33"]
[BlackClock "0:00:19"]

1. Nf3 {[%clk 0:03:00]}  Nf6 {[%clk 0:02:57]} 2. c4 {[%clk 0:03:01]}  g6 {[%clk 0:02:58]} 3. Nc3 {[%clk 0:03:01]}  Bg7 {[%clk 0:02:57]} 4. e4 {[%clk 0:03:01]}  O-O {[%clk 0:02:56]} 5. d4 {[%clk 0:03:01]}  d6 {[%clk 0:02:55]} 6. h3 {[%clk 0:03:01]}  Nc6 {[%clk 0:02:54]} 7. Be3 {[%clk 0:03:01]}  e5 {[%clk 0:02:54]} 8. d5 {[%clk 0:03:01]}  Ne7 {[%clk 0:02:53]} 9. g4 {[%clk 0:03:01]}  c6 {[%clk 0:02:51]} 10. Nd2 {[%clk 0:03:00]}  a6 {[%clk 0:02:51]} 11. a4 {[%clk 0:02:58]}  a5 {[%clk 0:02:45]} 12. Be2 {[%clk 0:02:56]}  Nd7 {[%clk 0:02:42]} 13. h4 {[%clk 0:02:55]}  Nc5 {[%clk 0:02:39]} 14. h5 {[%clk 0:02:53]}  Bd7 {[%clk 0:02:25]} 15. Kf1 {[%clk 0:02:45]}  Qc8 {[%clk 0:02:08]} 16. Bxc5 {[%clk 0:02:43]}  dxc5 {[%clk 0:01:58]} 17. d6 {[%clk 0:02:44]}  Qe8 {[%clk 0:01:51]} 18. dxe7 {[%clk 0:02:38]}  Qxe7 {[%clk 0:01:52]} 19. Bf3 {[%clk 0:02:34]}  Rad8 {[%clk 0:01:51]} 20. Qe2 {[%clk 0:02:34]}  Be6 {[%clk 0:01:49]} 21. Nb3 {[%clk 0:02:34]}  b6 {[%clk 0:01:47]} 22. Kg2 {[%clk 0:02:34]}  Rd6 {[%clk 0:01:37]} 23. Rad1 {[%clk 0:02:34]}  Rfd8 {[%clk 0:01:37]} 24. Rxd6 {[%clk 0:02:34]}  Rxd6 {[%clk 0:01:27]} 25. Rd1 {[%clk 0:02:34]}  f6 {[%clk 0:01:23]} 26. Rxd6 {[%clk 0:02:31]}  Qxd6 {[%clk 0:01:24]} 27. Nd2 {[%clk 0:02:30]}  Bh6 {[%clk 0:01:21]} 28. Nb3 {[%clk 0:02:28]}  Bf4 {[%clk 0:01:14]} 29. hxg6 {[%clk 0:02:27]}  hxg6 {[%clk 0:01:13]} 30. g5 {[%clk 0:02:26]}  Bxg5 {[%clk 0:01:09]} 31. Bg4 {[%clk 0:02:27]}  Bf7 {[%clk 0:01:09]} 32. Na1 {[%clk 0:02:20]}  Qd4 {[%clk 0:01:06]} 33. Nc2 {[%clk 0:02:20]}  Qxc4 {[%clk 0:01:06]} 34. Qxc4 {[%clk 0:02:18]}  Bxc4 {[%clk 0:01:07]} 35. Bd7 {[%clk 0:02:18]}  Bc1 {[%clk 0:01:01]} 36. Bxc6 {[%clk 0:02:17]}  Bxb2 {[%clk 0:01:01]} 37. Bd5+ {[%clk 0:02:17]}  Bxd5 {[%clk 0:01:01]} 38. Nxd5 {[%clk 0:02:18]}  Kf7 {[%clk 0:00:54]} 39. Nxb6 {[%clk 0:02:18]}  Bc3 {[%clk 0:00:51]} 40. Kf3 {[%clk 0:02:16]}  Ke6 {[%clk 0:00:50]} 41. Nc4 {[%clk 0:02:14]}  Bb4 {[%clk 0:00:49]} 42. N2e3 {[%clk 0:02:13]}  f5 {[%clk 0:00:49]} 43. Nd5 {[%clk 0:02:13]}  g5 {[%clk 0:00:43]} 44. Nxb4 {[%clk 0:02:09]}  axb4 {[%clk 0:00:41]} 45. exf5+ {[%clk 0:02:09]}  Kd5 {[%clk 0:00:41]} 46. Ne3+ {[%clk 0:02:04]}  Kd4 {[%clk 0:00:32]} 47. Ke2 {[%clk 0:01:48]}  c4 {[%clk 0:00:22]} 48. a5 {[%clk 0:01:48]}  c3 {[%clk 0:00:20]} 49. a6 {[%clk 0:01:46]}  b3 {[%clk 0:00:21]} 50. a7 {[%clk 0:01:36]}  b2 {[%clk 0:00:19]} 51. a8=Q {[%clk 0:01:33]} 1-0


[Site "https://www.chess.com"]

[Event "Late Titled Tuesday Blitz February 8 2022"]
[White "Golubenko, Valentina"]
[Black "Lin, Dachey"]
[WhiteFideId "4501993"]
[BlackFideId "2029650"]
[WhiteElo "2164"]
[BlackElo "2736"]
[Result "0-1"]
[Round "02"]
[TimeControl "180+1"]
[Date "2022.02.09"]
[WhiteClock "0:00:31"]
[BlackClock "0:00:33"]

1. d4 {[%clk 0:02:56]}  g6 {[%clk 0:02:58]} 2. g3 {[%clk 0:02:56]}  Bg7 {[%clk 0:02:59]} 3. Bg2 {[%clk 0:02:56]}  c5 {[%clk 0:02:59]} 4. d5 {[%clk 0:02:56]}  Nf6 {[%clk 0:02:59]} 5. c4 {[%clk 0:02:56]}  O-O {[%clk 0:02:58]} 6. Nc3 {[%clk 0:02:56]}  e6 {[%clk 0:02:59]} 7. Nf3 {[%clk 0:02:55]}  exd5 {[%clk 0:02:59]} 8. cxd5 {[%clk 0:02:55]}  d6 {[%clk 0:03:00]} 9. O-O {[%clk 0:02:55]}  Re8 {[%clk 0:03:01]} 10. Qc2 {[%clk 0:02:54]}  Na6 {[%clk 0:03:01]} 11. e4 {[%clk 0:02:54]}  b5 {[%clk 0:02:43]} 12. Re1 {[%clk 0:02:44]}  Nb4 {[%clk 0:02:40]} 13. Qd1 {[%clk 0:02:38]}  c4 {[%clk 0:02:37]} 14. Nd4 {[%clk 0:02:24]}  a6 {[%clk 0:02:35]} 15. Nc6 {[%clk 0:02:15]}  Nxc6 {[%clk 0:02:17]} 16. dxc6 {[%clk 0:02:15]}  Bg4 {[%clk 0:01:56]} 17. f3 {[%clk 0:01:59]}  Be6 {[%clk 0:01:53]} 18. Nd5 {[%clk 0:01:45]}  Bxd5 {[%clk 0:01:18]} 19. exd5 {[%clk 0:01:45]}  Qb6+ {[%clk 0:01:19]} 20. Kf1 {[%clk 0:01:27]}  Rxe1+ {[%clk 0:01:15]} 21. Kxe1 {[%clk 0:01:27]}  Qg1+ {[%clk 0:01:12]} 22. Bf1 {[%clk 0:01:23]}  Re8+ {[%clk 0:01:09]} 23. Kd2 {[%clk 0:01:22]}  Qf2+ {[%clk 0:00:59]} 24. Be2 {[%clk 0:01:17]}  Nxd5 {[%clk 0:00:59]} 25. Qf1 {[%clk 0:00:57]}  c3+ {[%clk 0:00:44]} 26. Kd1 {[%clk 0:00:34]}  Qxf1+ {[%clk 0:00:31]} 27. Bxf1 {[%clk 0:00:34]}  cxb2 {[%clk 0:00:32]} 28. Bxb2 {[%clk 0:00:31]}  Bxb2 {[%clk 0:00:33]} 0-1


[Site "https://www.chess.com"]

[Event "Late Titled Tuesday Blitz February 8 2022"]
[White "Golubovskis, Maksims"]
[Black "Jarocka, Liwia"]
[WhiteFideId "11608528"]
[BlackFideId "21807558"]
[WhiteElo "2066"]
[BlackElo "1896"]
[Result "0-1"]
[Round "02"]
[TimeControl "180+1"]
[Date "2022.02.09"]
[WhiteClock "0:00:00"]
[BlackClock "0:02:08"]

1. e4 {[%clk 0:02:55]}  b6 {[%clk 0:02:58]} 2. d4 {[%clk 0:02:52]}  Bb7 {[%clk 0:02:59]} 3. Bd3 {[%clk 0:02:52]}  Nf6 {[%clk 0:02:58]} 4. Qe2 {[%clk 0:02:51]}  d6 {[%clk 0:02:56]} 5. Nc3 {[%clk 0:02:49]}  e5 {[%clk 0:02:56]} 6. d5 {[%clk 0:02:47]}  Be7 {[%clk 0:02:56]} 7. Nf3 {[%clk 0:02:26]}  c6 {[%clk 0:02:55]} 8. dxc6 {[%clk 0:02:09]}  Nxc6 {[%clk 0:02:56]} 9. Bb5 {[%clk 0:02:09]}  O-O {[%clk 0:02:55]} 10. O-O {[%clk 0:02:08]}  a6 {[%clk 0:02:47]} 11. Ba4 {[%clk 0:02:03]}  b5 {[%clk 0:02:43]} 12. Bb3 {[%clk 0:02:03]}  Na5 {[%clk 0:02:43]} 13. Bg5 {[%clk 0:01:53]}  Nxb3 {[%clk 0:02:41]} 14. axb3 {[%clk 0:01:53]}  Rc8 {[%clk 0:02:38]} 15. Rad1 {[%clk 0:01:37]}  Ne8 {[%clk 0:02:27]} 16. Bxe7 {[%clk 0:01:07]}  Qxe7 {[%clk 0:02:27]} 17. Nd5 {[%clk 0:01:07]}  Bxd5 {[%clk 0:02:26]} 18. Rxd5 {[%clk 0:01:08]}  Nc7 {[%clk 0:02:26]} 19. Rd2 {[%clk 0:01:06]}  Ne6 {[%clk 0:02:25]} 20. Ra1 {[%clk 0:00:59]}  Rc6 {[%clk 0:02:17]} 21. g3 {[%clk 0:00:44]}  Rfc8 {[%clk 0:02:17]} 22. c3 {[%clk 0:00:16]}  Nc5 {[%clk 0:02:12]} 23. b4 {[%clk 0:00:11]}  Nb3 {[%clk 0:02:11]} 24. Rdd1 {[%clk 0:00:10]}  Nxa1 {[%clk 0:02:11]} 25. Rxa1 {[%clk 0:00:11]}  Qe6 {[%clk 0:02:08]} 26. Nd2 {[%clk 0:00:08]}  d5 {[%clk 0:02:08]} 27. exd5 {[%clk 0:00:00]}  Qxd5 {[%clk 0:02:08]} 0-1


[Site "https://www.chess.com"]

[Event "Late Titled Tuesday Blitz February 8 2022"]
[White "Gomez Ledo, Roberto Carlos"]
[Black "Howell, David W L"]
[WhiteFideId "3507076"]
[BlackFideId "410608"]
[WhiteElo "2379"]
[BlackElo "2559"]
[Result "0-1"]
[Round "02"]
[TimeControl "180+1"]
[Date "2022.02.08"]
[WhiteClock "0:00:04"]
[BlackClock "0:00:04"]

1. d4 {[%clk 0:03:00]}  e6 {[%clk 0:02:46]} 2. Bf4 {[%clk 0:02:57]}  d5 {[%clk 0:02:40]} 3. e3 {[%clk 0:02:56]}  Bd6 {[%clk 0:02:40]} 4. Bg3 {[%clk 0:02:56]}  c5 {[%clk 0:02:39]} 5. c3 {[%clk 0:02:55]}  Nf6 {[%clk 0:02:27]} 6. Nd2 {[%clk 0:02:52]}  Qc7 {[%clk 0:02:27]} 7. dxc5 {[%clk 0:02:51]}  Qxc5 {[%clk 0:02:27]} 8. Ngf3 {[%clk 0:02:51]}  O-O {[%clk 0:02:25]} 9. Bd3 {[%clk 0:02:50]}  b6 {[%clk 0:02:10]} 10. e4 {[%clk 0:02:48]}  Bxg3 {[%clk 0:01:27]} 11. hxg3 {[%clk 0:02:48]}  h6 {[%clk 0:01:28]} 12. e5 {[%clk 0:02:39]}  Ng4 {[%clk 0:01:23]} 13. Qe2 {[%clk 0:02:32]}  Nd7 {[%clk 0:01:23]} 14. Rh4 {[%clk 0:02:30]}  f5 {[%clk 0:01:20]} 15. exf6 {[%clk 0:01:58]}  Ndxf6 {[%clk 0:01:20]} 16. Nb3 {[%clk 0:01:37]}  Qc7 {[%clk 0:01:17]} 17. O-O-O {[%clk 0:01:27]}  e5 {[%clk 0:01:17]} 18. Bc2 {[%clk 0:01:07]}  a5 {[%clk 0:01:11]} 19. Nh2 {[%clk 0:01:03]}  Nxh2 {[%clk 0:01:05]} 20. Rxh2 {[%clk 0:01:03]}  a4 {[%clk 0:01:06]} 21. Nd2 {[%clk 0:00:56]}  a3 {[%clk 0:01:06]} 22. Rdh1 {[%clk 0:00:39]}  axb2+ {[%clk 0:01:00]} 23. Kxb2 {[%clk 0:00:40]}  Bg4 {[%clk 0:00:51]} 24. f3 {[%clk 0:00:38]}  Be6 {[%clk 0:00:51]} 25. g4 {[%clk 0:00:31]}  d4 {[%clk 0:00:48]} 26. c4 {[%clk 0:00:31]}  Qc5 {[%clk 0:00:41]} 27. g5 {[%clk 0:00:28]}  Qa3+ {[%clk 0:00:27]} 28. Kb1 {[%clk 0:00:24]}  Qxa2+ {[%clk 0:00:21]} 29. Kc1 {[%clk 0:00:23]}  Qa3+ {[%clk 0:00:22]} 30. Kd1 {[%clk 0:00:21]}  Qa1+ {[%clk 0:00:19]} 31. Nb1 {[%clk 0:00:19]}  d3 {[%clk 0:00:19]} 32. Bxd3 {[%clk 0:00:16]}  Rfd8 {[%clk 0:00:17]} 33. Ke1 {[%clk 0:00:15]}  e4 {[%clk 0:00:13]} 34. fxe4 {[%clk 0:00:07]}  Ng4 {[%clk 0:00:11]} 35. e5 {[%clk 0:00:07]}  Ra2 {[%clk 0:00:07]} 36. Qe4 {[%clk 0:00:06]}  Rxd3 {[%clk 0:00:05]} 37. Qxd3 {[%clk 0:00:05]}  Qxe5+ {[%clk 0:00:04]} 38. Kd1 {[%clk 0:00:04]}  Nf2+ {[%clk 0:00:03]} 39. Kc1 {[%clk 0:00:04]}  Nxd3+ {[%clk 0:00:04]} 0-1


[Site "https://www.chess.com"]

[Event "Late Titled Tuesday Blitz February 8 2022"]
[White "Gracia Alvarez, Gerardo Antonio"]
[Black "Lenderman, Aleksandr"]
[WhiteFideId "5109124"]
[BlackFideId "2021285"]
[WhiteElo "2139"]
[BlackElo "2651"]
[Result "0-1"]
[Round "02"]
[TimeControl "180+1"]
[Date "2022.02.09"]
[WhiteClock "0:00:03"]
[BlackClock "0:00:29"]

1. e4 {[%clk 0:03:00]}  c6 {[%clk 0:02:59]} 2. c4 {[%clk 0:03:00]}  d5 {[%clk 0:02:58]} 3. cxd5 {[%clk 0:03:01]}  cxd5 {[%clk 0:02:59]} 4. exd5 {[%clk 0:03:01]}  Nf6 {[%clk 0:02:59]} 5. Qa4+ {[%clk 0:03:01]}  Nbd7 {[%clk 0:02:59]} 6. Nc3 {[%clk 0:03:00]}  g6 {[%clk 0:02:59]} 7. Bc4 {[%clk 0:03:01]}  Bg7 {[%clk 0:03:00]} 8. d3 {[%clk 0:03:01]}  O-O {[%clk 0:03:00]} 9. Nf3 {[%clk 0:03:02]}  a6 {[%clk 0:03:00]} 10. Qa3 {[%clk 0:03:02]}  Nb6 {[%clk 0:02:56]} 11. Qb3 {[%clk 0:03:02]}  Bg4 {[%clk 0:02:53]} 12. Ne5 {[%clk 0:03:02]}  Qc7 {[%clk 0:02:47]} 13. O-O {[%clk 0:03:02]}  Nxc4 {[%clk 0:02:40]} 14. Nxc4 {[%clk 0:03:01]}  b5 {[%clk 0:02:39]} 15. Ne3 {[%clk 0:03:01]}  Bd7 {[%clk 0:02:35]} 16. Bd2 {[%clk 0:02:55]}  Qb7 {[%clk 0:02:30]} 17. a4 {[%clk 0:02:45]}  e6 {[%clk 0:02:27]} 18. axb5 {[%clk 0:02:42]}  axb5 {[%clk 0:02:27]} 19. dxe6 {[%clk 0:02:33]}  Bxe6 {[%clk 0:02:26]} 20. Qxb5 {[%clk 0:02:32]}  Qc7 {[%clk 0:02:20]} 21. Rfc1 {[%clk 0:01:59]}  Rab8 {[%clk 0:02:19]} 22. Qa6 {[%clk 0:01:27]}  Qd7 {[%clk 0:02:17]} 23. Rcb1 {[%clk 0:01:09]}  Rfd8 {[%clk 0:02:15]} 24. b4 {[%clk 0:01:04]}  Qxd3 {[%clk 0:02:14]} 25. Qxd3 {[%clk 0:01:04]}  Rxd3 {[%clk 0:02:15]} 26. Be1 {[%clk 0:00:58]}  Nd7 {[%clk 0:02:15]} 27. Ra3 {[%clk 0:00:46]}  Nb6 {[%clk 0:02:14]} 28. Nb5 {[%clk 0:00:41]}  Rd7 {[%clk 0:01:55]} 29. Ra7 {[%clk 0:00:38]}  Rxa7 {[%clk 0:01:40]} 30. Nxa7 {[%clk 0:00:39]}  Bd7 {[%clk 0:01:41]} 31. b5 {[%clk 0:00:31]}  Na4 {[%clk 0:01:40]} 32. Ba5 {[%clk 0:00:26]}  Bd4 {[%clk 0:01:28]} 33. Rd1 {[%clk 0:00:18]}  Bxa7 {[%clk 0:01:27]} 34. Rxd7 {[%clk 0:00:17]}  Bxe3 {[%clk 0:01:25]} 35. fxe3 {[%clk 0:00:15]}  Rxb5 {[%clk 0:01:25]} 36. Bd2 {[%clk 0:00:12]}  Kg7 {[%clk 0:01:19]} 37. Rd4 {[%clk 0:00:12]}  Nc5 {[%clk 0:01:15]} 38. Bc3 {[%clk 0:00:11]}  f6 {[%clk 0:01:12]} 39. Kf2 {[%clk 0:00:08]}  Kf7 {[%clk 0:01:10]} 40. Kf3 {[%clk 0:00:09]}  Ke6 {[%clk 0:01:08]} 41. Rb4 {[%clk 0:00:08]}  Rxb4 {[%clk 0:01:05]} 42. Bxb4 {[%clk 0:00:09]}  Nd3 {[%clk 0:01:05]} 43. Bc3 {[%clk 0:00:08]}  Nc5 {[%clk 0:00:57]} 44. e4 {[%clk 0:00:08]}  Nd7 {[%clk 0:00:56]} 45. Ke3 {[%clk 0:00:07]}  Nb8 {[%clk 0:00:56]} 46. Bd4 {[%clk 0:00:07]}  Nc6 {[%clk 0:00:57]} 47. Bc3 {[%clk 0:00:07]}  Ne7 {[%clk 0:00:56]} 48. g3 {[%clk 0:00:08]}  Nc8 {[%clk 0:00:57]} 49. Bd4 {[%clk 0:00:08]}  Nd6 {[%clk 0:00:57]} 50. Bc3 {[%clk 0:00:07]}  Nf7 {[%clk 0:00:58]} 51. Bd4 {[%clk 0:00:07]}  Ng5 {[%clk 0:00:58]} 52. h4 {[%clk 0:00:06]}  Nf7 {[%clk 0:00:59]} 53. Bc3 {[%clk 0:00:06]}  Nh6 {[%clk 0:00:59]} 54. Kf4 {[%clk 0:00:05]}  Nf7 {[%clk 0:00:59]} 55. Bd4 {[%clk 0:00:06]}  Nd8 {[%clk 0:00:59]} 56. Bc3 {[%clk 0:00:03]}  Nc6 {[%clk 0:01:00]} 57. Bb2 {[%clk 0:00:03]}  Nb4 {[%clk 0:01:00]} 58. Bd4 {[%clk 0:00:03]}  Nd3+ {[%clk 0:01:00]} 59. Ke3 {[%clk 0:00:03]}  Nb4 {[%clk 0:01:00]} 60. Kf4 {[%clk 0:00:03]}  Nc6 {[%clk 0:01:01]} 61. Bc3 {[%clk 0:00:03]}  Na7 {[%clk 0:01:02]} 62. Ke3 {[%clk 0:00:03]}  Nb5 {[%clk 0:01:02]} 63. Bb2 {[%clk 0:00:04]}  Nd6 {[%clk 0:01:03]} 64. Kf4 {[%clk 0:00:04]}  Nf7 {[%clk 0:01:03]} 65. Bc3 {[%clk 0:00:04]}  h5 {[%clk 0:01:03]} 66. g4 {[%clk 0:00:04]}  g5+ {[%clk 0:00:39]} 67. hxg5 {[%clk 0:00:03]}  fxg5+ {[%clk 0:00:39]} 68. Kg3 {[%clk 0:00:03]}  h4+ {[%clk 0:00:40]} 69. Kh3 {[%clk 0:00:02]}  Nd6 {[%clk 0:00:40]} 70. e5 {[%clk 0:00:02]}  Nc4 {[%clk 0:00:36]} 71. Bd4 {[%clk 0:00:01]}  Nxe5 {[%clk 0:00:36]} 72. Be3 {[%clk 0:00:01]}  Kf6 {[%clk 0:00:36]} 73. Bd4 {[%clk 0:00:02]}  Ke6 {[%clk 0:00:36]} 74. Be3 {[%clk 0:00:02]}  Nf7 {[%clk 0:00:36]} 75. Bd2 {[%clk 0:00:02]}  Kf6 {[%clk 0:00:34]} 76. Bc3+ {[%clk 0:00:02]}  Kg6 {[%clk 0:00:34]} 77. Bd2 {[%clk 0:00:03]}  Nd8 {[%clk 0:00:34]} 78. Be3 {[%clk 0:00:03]}  Ne6 {[%clk 0:00:34]} 79. Bd2 {[%clk 0:00:03]}  Nc5 {[%clk 0:00:29]} 80. Be3 {[%clk 0:00:03]}  Ne4 {[%clk 0:00:29]} 81. Bc1 {[%clk 0:00:03]}  Nf2+ {[%clk 0:00:28]} 82. Kg2 {[%clk 0:00:03]}  Nxg4 {[%clk 0:00:29]} 83. Kh3 {[%clk 0:00:03]}  Kh5 {[%clk 0:00:29]} 84. Bb2 {[%clk 0:00:02]}  Ne3 {[%clk 0:00:28]} 85. Bc1 {[%clk 0:00:02]}  g4+ {[%clk 0:00:29]} 86. Kh2 {[%clk 0:00:03]}  Nf5 {[%clk 0:00:29]} 87. Bf4 {[%clk 0:00:03]}  Nd4 {[%clk 0:00:29]} 88. Be5 {[%clk 0:00:03]}  Nf3+ {[%clk 0:00:29]} 0-1


[Site "https://www.chess.com"]

[Event "Late Titled Tuesday Blitz February 8 2022"]
[White "Hamley, Ryan"]
[Black "Clawitter, Craig"]
[WhiteFideId "30959497"]
[BlackFideId "2023105"]
[WhiteElo "2471"]
[BlackElo "2194"]
[Result "1-0"]
[Round "02"]
[TimeControl "180+1"]
[Date "2022.02.09"]
[WhiteClock "0:01:14"]
[BlackClock "0:00:01"]

1. e4 {[%clk 0:03:00]}  e6 {[%clk 0:03:00]} 2. d4 {[%clk 0:02:58]}  d5 {[%clk 0:03:00]} 3. Nc3 {[%clk 0:02:59]}  Bb4 {[%clk 0:02:59]} 4. e5 {[%clk 0:02:59]}  c5 {[%clk 0:03:00]} 5. a3 {[%clk 0:02:59]}  Bxc3+ {[%clk 0:03:00]} 6. bxc3 {[%clk 0:03:00]}  Ne7 {[%clk 0:03:01]} 7. Qg4 {[%clk 0:02:56]}  Qc7 {[%clk 0:03:00]} 8. Bd3 {[%clk 0:02:55]}  c4 {[%clk 0:02:56]} 9. Be2 {[%clk 0:02:53]}  Qa5 {[%clk 0:02:56]} 10. Bd2 {[%clk 0:02:53]}  Nf5 {[%clk 0:02:53]} 11. h4 {[%clk 0:02:47]}  Nc6 {[%clk 0:02:48]} 12. h5 {[%clk 0:02:45]}  h6 {[%clk 0:02:48]} 13. Qf4 {[%clk 0:02:44]}  Bd7 {[%clk 0:02:30]} 14. g4 {[%clk 0:02:43]}  Nfe7 {[%clk 0:02:30]} 15. Nf3 {[%clk 0:02:41]}  f6 {[%clk 0:02:09]} 16. exf6 {[%clk 0:02:27]}  Rf8 {[%clk 0:01:56]} 17. g5 {[%clk 0:02:22]}  hxg5 {[%clk 0:01:56]} 18. Nxg5 {[%clk 0:02:04]}  Rxf6 {[%clk 0:01:46]} 19. Qd6 {[%clk 0:01:53]}  Nf5 {[%clk 0:01:30]} 20. Qh2 {[%clk 0:01:46]}  O-O-O {[%clk 0:01:22]} 21. Nf3 {[%clk 0:01:46]}  Be8 {[%clk 0:00:47]} 22. Ne5 {[%clk 0:01:44]}  Nd6 {[%clk 0:00:32]} 23. f3 {[%clk 0:01:33]}  Rf5 {[%clk 0:00:20]} 24. Qg3 {[%clk 0:01:28]}  Rxh5 {[%clk 0:00:12]} 25. Rxh5 {[%clk 0:01:25]}  Bxh5 {[%clk 0:00:13]} 26. Qxg7 {[%clk 0:01:26]}  Nf5 {[%clk 0:00:07]} 27. Qf6 {[%clk 0:01:19]}  Nxe5 {[%clk 0:00:06]} 28. Qxe6+ {[%clk 0:01:15]}  Nd7 {[%clk 0:00:06]} 29. Qxf5 {[%clk 0:01:15]}  Rh8 {[%clk 0:00:02]} 30. Kf2 {[%clk 0:01:14]}  Qc7 {[%clk 0:00:01]} 31. Rh1 {[%clk 0:01:14]} 1-0


[Site "https://www.chess.com"]

[Event "Late Titled Tuesday Blitz February 8 2022"]
[White "Holt, Conrad"]
[Black "Taichman, Ori"]
[WhiteFideId "2034387"]
[BlackFideId "2804069"]
[WhiteElo "2821"]
[BlackElo "2566"]
[Result "0-1"]
[Round "02"]
[TimeControl "180+1"]
[Date "2022.02.09"]
[WhiteClock "0:00:05"]
[BlackClock "0:00:06"]

1. d4 {[%clk 0:03:00]}  Nf6 {[%clk 0:02:56]} 2. c4 {[%clk 0:03:01]}  g6 {[%clk 0:02:55]} 3. Nc3 {[%clk 0:03:01]}  Bg7 {[%clk 0:02:55]} 4. e4 {[%clk 0:03:01]}  O-O {[%clk 0:02:53]} 5. Nf3 {[%clk 0:03:02]}  d6 {[%clk 0:02:50]} 6. h3 {[%clk 0:03:02]}  e5 {[%clk 0:02:49]} 7. dxe5 {[%clk 0:03:02]}  dxe5 {[%clk 0:02:49]} 8. Qxd8 {[%clk 0:03:03]}  Rxd8 {[%clk 0:02:49]} 9. Bg5 {[%clk 0:03:04]}  Re8 {[%clk 0:02:49]} 10. Nd5 {[%clk 0:03:03]}  Nxd5 {[%clk 0:02:50]} 11. cxd5 {[%clk 0:03:04]}  c6 {[%clk 0:02:51]} 12. Bc4 {[%clk 0:03:05]}  cxd5 {[%clk 0:02:51]} 13. Bxd5 {[%clk 0:03:05]}  Na6 {[%clk 0:02:52]} 14. Ke2 {[%clk 0:03:02]}  Nc7 {[%clk 0:02:46]} 15. Bb3 {[%clk 0:02:58]}  Ne6 {[%clk 0:02:34]} 16. Rhd1 {[%clk 0:02:57]}  a5 {[%clk 0:02:25]} 17. Ba4 {[%clk 0:02:51]}  b5 {[%clk 0:01:57]} 18. Bxb5 {[%clk 0:02:47]}  Nxg5 {[%clk 0:01:41]} 19. Nxg5 {[%clk 0:02:34]}  Rf8 {[%clk 0:01:30]} 20. Rac1 {[%clk 0:02:25]}  Rb8 {[%clk 0:01:30]} 21. a4 {[%clk 0:02:22]}  Bh6 {[%clk 0:01:26]} 22. h4 {[%clk 0:02:21]}  f6 {[%clk 0:01:24]} 23. Nf3 {[%clk 0:01:10]}  Bxc1 {[%clk 0:01:23]} 24. Rxc1 {[%clk 0:01:11]}  Bg4 {[%clk 0:01:20]} 25. Rc7 {[%clk 0:00:48]}  Rfc8 {[%clk 0:01:19]} 26. Ra7 {[%clk 0:00:46]}  Rc2+ {[%clk 0:00:42]} 27. Ke3 {[%clk 0:00:44]}  Rxb2 {[%clk 0:00:43]} 28. Bc4+ {[%clk 0:00:38]}  Kh8 {[%clk 0:00:42]} 29. Rxa5 {[%clk 0:00:38]}  Bd7 {[%clk 0:00:25]} 30. Ra6 {[%clk 0:00:15]}  R8b4 {[%clk 0:00:20]} 31. Bd3 {[%clk 0:00:13]}  Kg7 {[%clk 0:00:12]} 32. a5 {[%clk 0:00:11]}  Rb7 {[%clk 0:00:10]} 33. Rd6 {[%clk 0:00:11]}  Ra2 {[%clk 0:00:10]} 34. a6 {[%clk 0:00:11]}  Ra7 {[%clk 0:00:10]} 35. Nd2 {[%clk 0:00:10]}  Bc8 {[%clk 0:00:10]} 36. h5 {[%clk 0:00:08]}  gxh5 {[%clk 0:00:10]} 37. Nb3 {[%clk 0:00:08]}  Bxa6 {[%clk 0:00:10]} 38. Nc5 {[%clk 0:00:08]}  Bxd3 {[%clk 0:00:09]} 39. Nxd3 {[%clk 0:00:09]}  R7a3 {[%clk 0:00:08]} 40. Rd7+ {[%clk 0:00:08]}  Kg6 {[%clk 0:00:08]} 41. g3 {[%clk 0:00:08]}  Rb3 {[%clk 0:00:06]} 42. Rd8 {[%clk 0:00:06]}  Raa3 {[%clk 0:00:06]} 43. Ke2 {[%clk 0:00:07]}  Rxd3 {[%clk 0:00:06]} 44. Rxd3 {[%clk 0:00:07]}  Rxd3 {[%clk 0:00:07]} 45. Kxd3 {[%clk 0:00:08]}  Kg5 {[%clk 0:00:08]} 46. Ke2 {[%clk 0:00:07]}  h4 {[%clk 0:00:07]} 47. Kf3 {[%clk 0:00:07]}  h3 {[%clk 0:00:07]} 48. g4 {[%clk 0:00:05]}  Kh4 {[%clk 0:00:06]} 0-1


[Site "https://www.chess.com"]